[Event "Titled Tuesday Blitz July 26 Early 2022"]
[White "Gaisinsky, Adam"]
[Black "Suleymanli, Aydin"]
[WhiteFideId "2620561"]
[BlackFideId "13413937"]
[WhiteElo "1965"]
[BlackElo "2481"]
[Result "0-1"]
[Round "01"]
[TimeControl "180+1"]
[Date "2022.07.26"]
[WhiteClock "0:00:01"]
[BlackClock "0:01:05"]

1. d4 {[%clk 0:02:59]}  d5 {[%clk 0:02:57]} 2. Nf3 {[%clk 0:02:59]}  Nf6 {[%clk 0:02:57]} 3. Bf4 {[%clk 0:02:58]}  c5 {[%clk 0:02:56]} 4. e3 {[%clk 0:02:58]}  Nc6 {[%clk 0:02:56]} 5. Nbd2 {[%clk 0:02:58]}  e6 {[%clk 0:02:55]} 6. c3 {[%clk 0:02:58]}  Bd6 {[%clk 0:02:55]} 7. Bg3 {[%clk 0:02:58]}  O-O {[%clk 0:02:54]} 8. Bd3 {[%clk 0:02:59]}  Ne7 {[%clk 0:02:54]} 9. e4 {[%clk 0:02:38]}  dxe4 {[%clk 0:02:19]} 10. Nxe4 {[%clk 0:02:37]}  Nxe4 {[%clk 0:02:19]} 11. Bxe4 {[%clk 0:02:35]}  h6 {[%clk 0:02:15]} 12. O-O {[%clk 0:02:15]}  Qc7 {[%clk 0:01:51]} 13. dxc5 {[%clk 0:01:55]}  Bxg3 {[%clk 0:01:49]} 14. hxg3 {[%clk 0:01:53]}  Qxc5 {[%clk 0:01:50]} 15. Qd4 {[%clk 0:01:54]}  Qxd4 {[%clk 0:01:50]} 16. Nxd4 {[%clk 0:01:54]}  a6 {[%clk 0:01:49]} 17. Rfd1 {[%clk 0:01:48]}  Rb8 {[%clk 0:01:44]} 18. a4 {[%clk 0:01:45]}  e5 {[%clk 0:01:42]} 19. Nf3 {[%clk 0:01:40]}  f6 {[%clk 0:01:40]} 20. Rd6 {[%clk 0:01:29]}  Bf5 {[%clk 0:01:39]} 21. Bxf5 {[%clk 0:01:21]}  Nxf5 {[%clk 0:01:40]} 22. Rd7 {[%clk 0:01:21]}  Rf7 {[%clk 0:01:37]} 23. Rad1 {[%clk 0:01:19]}  b5 {[%clk 0:01:32]} 24. g4 {[%clk 0:01:09]}  Ne7 {[%clk 0:01:29]} 25. Rd8+ {[%clk 0:01:07]}  Rf8 {[%clk 0:01:29]} 26. Rxf8+ {[%clk 0:00:43]}  Kxf8 {[%clk 0:01:30]} 27. axb5 {[%clk 0:00:38]}  Rxb5 {[%clk 0:01:23]} 28. b4 {[%clk 0:00:25]}  a5 {[%clk 0:01:22]} 29. bxa5 {[%clk 0:00:24]}  Rxa5 {[%clk 0:01:23]} 30. c4 {[%clk 0:00:18]}  Ra2 {[%clk 0:01:16]} 31. Rc1 {[%clk 0:00:15]}  Nc6 {[%clk 0:01:15]} 32. Ne1 {[%clk 0:00:13]}  Kf7 {[%clk 0:01:12]} 33. Nd3 {[%clk 0:00:13]}  Rd2 {[%clk 0:01:12]} 34. Nc5 {[%clk 0:00:12]}  Nd4 {[%clk 0:01:13]} 35. Kf1 {[%clk 0:00:12]}  Ne2 {[%clk 0:01:10]} 36. Re1 {[%clk 0:00:10]}  Nf4 {[%clk 0:01:09]} 37. Rc1 {[%clk 0:00:09]}  Ke7 {[%clk 0:01:08]} 38. Ne4 {[%clk 0:00:09]}  Re2 {[%clk 0:01:07]} 39. Ng3 {[%clk 0:00:09]}  Rxf2+ {[%clk 0:01:07]} 40. Kxf2 {[%clk 0:00:06]}  Nd3+ {[%clk 0:01:07]} 41. Ke3 {[%clk 0:00:07]}  Nxc1 {[%clk 0:01:08]} 42. Nf5+ {[%clk 0:00:06]}  Kf8 {[%clk 0:01:04]} 43. c5 {[%clk 0:00:07]}  Na2 {[%clk 0:01:04]} 44. c6 {[%clk 0:00:07]}  Nb4 {[%clk 0:01:04]} 45. Ke4 {[%clk 0:00:02]}  Nxc6 {[%clk 0:01:04]} 46. Kd5 {[%clk 0:00:02]}  Ne7+ {[%clk 0:01:05]} 47. Nxe7 {[%clk 0:00:01]}  Kxe7 {[%clk 0:01:05]} 0-1


[Site "https://www.chess.com"]

[Event "Titled Tuesday Blitz July 26 Early 2022"]
[White "Gatterer, Florian"]
[Black "Aldokhin, Ivan"]
[WhiteFideId "811688"]
[BlackFideId "24115720"]
[WhiteElo "2218"]
[BlackElo "2246"]
[Result "1-0"]
[Round "01"]
[TimeControl "180+1"]
[Date "2022.07.27"]
[WhiteClock "0:00:14"]
[BlackClock "0:00:04"]

1. Nf3 {[%clk 0:03:00]}  Nf6 {[%clk 0:02:55]} 2. g3 {[%clk 0:02:59]}  g6 {[%clk 0:02:55]} 3. b3 {[%clk 0:02:58]}  Bg7 {[%clk 0:02:56]} 4. Bb2 {[%clk 0:02:58]}  O-O {[%clk 0:02:54]} 5. c4 {[%clk 0:02:57]}  a5 {[%clk 0:02:54]} 6. Nc3 {[%clk 0:02:54]}  d6 {[%clk 0:02:54]} 7. d4 {[%clk 0:02:52]}  Bf5 {[%clk 0:02:45]} 8. Nh4 {[%clk 0:02:38]}  Bd7 {[%clk 0:02:39]} 9. Bg2 {[%clk 0:02:37]}  Nc6 {[%clk 0:02:39]} 10. d5 {[%clk 0:02:33]}  Nb4 {[%clk 0:02:39]} 11. a3 {[%clk 0:02:29]}  Na6 {[%clk 0:02:38]} 12. O-O {[%clk 0:02:26]}  Nc5 {[%clk 0:02:33]} 13. Qc2 {[%clk 0:02:18]}  Qc8 {[%clk 0:02:13]} 14. Rfe1 {[%clk 0:02:12]}  e5 {[%clk 0:01:48]} 15. dxe6 {[%clk 0:02:05]}  Bxe6 {[%clk 0:01:44]} 16. e4 {[%clk 0:01:52]}  a4 {[%clk 0:01:39]} 17. b4 {[%clk 0:01:51]}  Nb3 {[%clk 0:01:39]} 18. Rad1 {[%clk 0:01:34]}  Bxc4 {[%clk 0:01:33]} 19. Nxa4 {[%clk 0:01:33]}  b5 {[%clk 0:01:20]} 20. Nc3 {[%clk 0:01:29]}  c5 {[%clk 0:01:17]} 21. Nxb5 {[%clk 0:01:24]}  Bxb5 {[%clk 0:01:08]} 22. Qxb3 {[%clk 0:01:23]}  Ba4 {[%clk 0:01:07]} 23. Qd3 {[%clk 0:01:15]}  Bxd1 {[%clk 0:01:04]} 24. Rxd1 {[%clk 0:01:13]}  c4 {[%clk 0:01:04]} 25. Qe2 {[%clk 0:00:57]}  c3 {[%clk 0:00:56]} 26. Bc1 {[%clk 0:00:56]}  Re8 {[%clk 0:00:36]} 27. Qc2 {[%clk 0:00:53]}  Qc4 {[%clk 0:00:30]} 28. e5 {[%clk 0:00:48]}  dxe5 {[%clk 0:00:27]} 29. Bxa8 {[%clk 0:00:47]}  Rxa8 {[%clk 0:00:28]} 30. Ng2 {[%clk 0:00:41]}  Nd5 {[%clk 0:00:19]} 31. Ne3 {[%clk 0:00:40]}  Nxe3 {[%clk 0:00:18]} 32. Bxe3 {[%clk 0:00:41]}  e4 {[%clk 0:00:18]} 33. Ra1 {[%clk 0:00:28]}  h5 {[%clk 0:00:18]} 34. h4 {[%clk 0:00:28]}  Qd3 {[%clk 0:00:15]} 35. Ra2 {[%clk 0:00:27]}  Qxc2 {[%clk 0:00:13]} 36. Rxc2 {[%clk 0:00:27]}  Rxa3 {[%clk 0:00:14]} 37. b5 {[%clk 0:00:27]}  Rb3 {[%clk 0:00:14]} 38. b6 {[%clk 0:00:27]}  Rb2 {[%clk 0:00:11]} 39. Rc1 {[%clk 0:00:24]}  Kf8 {[%clk 0:00:12]} 40. Kf1 {[%clk 0:00:15]}  Ke7 {[%clk 0:00:12]} 41. Ke1 {[%clk 0:00:15]}  Kd6 {[%clk 0:00:12]} 42. Kd1 {[%clk 0:00:15]}  Kc6 {[%clk 0:00:13]} 43. Rc2 {[%clk 0:00:16]}  Rb1+ {[%clk 0:00:13]} 44. Rc1 {[%clk 0:00:16]}  Rb2 {[%clk 0:00:13]} 45. Rc2 {[%clk 0:00:16]}  Rb1+ {[%clk 0:00:06]} 46. Rc1 {[%clk 0:00:16]}  Rxc1+ {[%clk 0:00:05]} 47. Kxc1 {[%clk 0:00:17]}  Bf8 {[%clk 0:00:06]} 48. Kc2 {[%clk 0:00:16]}  Bc5 {[%clk 0:00:03]} 49. Bxc5 {[%clk 0:00:15]}  Kxc5 {[%clk 0:00:02]} 50. b7 {[%clk 0:00:15]}  e3 {[%clk 0:00:02]} 51. fxe3 {[%clk 0:00:14]}  Kd5 {[%clk 0:00:03]} 52. b8=Q {[%clk 0:00:14]}  Ke4 {[%clk 0:00:04]} 53. Qf4+ {[%clk 0:00:14]}  Kd5 {[%clk 0:00:04]} 54. Qxf7+ {[%clk 0:00:14]}  Ke4 {[%clk 0:00:04]} 55. Qxg6+ {[%clk 0:00:14]} 1-0


[Site "https://www.chess.com"]

[Event "Titled Tuesday Blitz July 26 Early 2022"]
[White "Grunberg, Mihai-Lucian"]
[Black "Shimanov, Aleksandr"]
[WhiteFideId "1204149"]
[BlackFideId "4198603"]
[WhiteElo "2364"]
[BlackElo "2605"]
[Result "0-1"]
[Round "01"]
[TimeControl "180+1"]
[Date "2022.07.26"]
[WhiteClock "0:01:23"]
[BlackClock "0:02:12"]

1. Nf3 {[%clk 0:03:00]}  d5 {[%clk 0:02:55]} 2. c4 {[%clk 0:02:59]}  e6 {[%clk 0:02:51]} 3. g3 {[%clk 0:02:59]}  Nf6 {[%clk 0:02:49]} 4. Bg2 {[%clk 0:03:00]}  Nbd7 {[%clk 0:02:46]} 5. O-O {[%clk 0:03:01]}  dxc4 {[%clk 0:02:43]} 6. Qa4 {[%clk 0:02:58]}  a6 {[%clk 0:02:43]} 7. Qxc4 {[%clk 0:02:57]}  b5 {[%clk 0:02:41]} 8. Qb3 {[%clk 0:02:57]}  Bb7 {[%clk 0:02:39]} 9. d4 {[%clk 0:02:53]}  c5 {[%clk 0:02:39]} 10. a4 {[%clk 0:02:46]}  c4 {[%clk 0:02:37]} 11. Qc2 {[%clk 0:02:45]}  Be7 {[%clk 0:02:32]} 12. Na3 {[%clk 0:02:27]}  Qb6 {[%clk 0:02:29]} 13. Bg5 {[%clk 0:02:09]}  O-O {[%clk 0:02:28]} 14. Ne5 {[%clk 0:01:58]}  Rfd8 {[%clk 0:02:19]} 15. Rfd1 {[%clk 0:01:39]}  Nxe5 {[%clk 0:02:12]} 16. dxe5 {[%clk 0:01:37]}  Ng4 {[%clk 0:02:11]} 17. Bxe7 {[%clk 0:01:24]}  Qxf2+ {[%clk 0:02:11]} 18. Kh1 {[%clk 0:01:23]}  Qxg2# {[%clk 0:02:12]} 0-1


[Site "https://www.chess.com"]

[Event "Titled Tuesday Blitz July 26 Early 2022"]
[White "Hafiz, Arif Abdul"]
[Black "Terletsky, Oleg"]
[WhiteFideId "7104227"]
[BlackFideId "14116774"]
[WhiteElo "2198"]
[BlackElo "1988"]
[Result "1-0"]
[Round "01"]
[TimeControl "180+1"]
[Date "2022.07.27"]
[WhiteClock "0:01:21"]
[BlackClock "0:00:06"]

1. e4 {[%clk 0:03:00]}  e5 {[%clk 0:02:59]} 2. Nc3 {[%clk 0:02:58]}  Nf6 {[%clk 0:02:58]} 3. f4 {[%clk 0:02:58]}  d5 {[%clk 0:02:59]} 4. fxe5 {[%clk 0:02:58]}  Nxe4 {[%clk 0:02:58]} 5. Qf3 {[%clk 0:02:58]}  Nc6 {[%clk 0:02:58]} 6. Bb5 {[%clk 0:02:57]}  Nxc3 {[%clk 0:02:55]} 7. dxc3 {[%clk 0:02:53]}  Qh4+ {[%clk 0:02:54]} 8. g3 {[%clk 0:02:53]}  Qe4+ {[%clk 0:02:54]} 9. Qxe4 {[%clk 0:02:53]}  dxe4 {[%clk 0:02:55]} 10. Ne2 {[%clk 0:02:53]}  Bg4 {[%clk 0:02:53]} 11. Bxc6+ {[%clk 0:02:50]}  bxc6 {[%clk 0:02:53]} 12. Rf1 {[%clk 0:02:50]}  Bc5 {[%clk 0:02:41]} 13. Rf4 {[%clk 0:02:39]}  Bf3 {[%clk 0:02:35]} 14. Nd4 {[%clk 0:02:39]}  Bxd4 {[%clk 0:02:17]} 15. cxd4 {[%clk 0:02:39]}  Rd8 {[%clk 0:02:14]} 16. Be3 {[%clk 0:02:39]}  O-O {[%clk 0:02:05]} 17. a4 {[%clk 0:02:24]}  c5 {[%clk 0:01:58]} 18. dxc5 {[%clk 0:02:08]}  Rd5 {[%clk 0:01:57]} 19. Rf5 {[%clk 0:01:58]}  Rfd8 {[%clk 0:01:51]} 20. Kf2 {[%clk 0:01:49]}  a5 {[%clk 0:01:02]} 21. c3 {[%clk 0:01:43]}  h6 {[%clk 0:00:50]} 22. Bd4 {[%clk 0:01:39]}  Rxd4 {[%clk 0:00:38]} 23. cxd4 {[%clk 0:01:38]}  Rxd4 {[%clk 0:00:39]} 24. e6 {[%clk 0:01:31]}  fxe6 {[%clk 0:00:31]} 25. Re5 {[%clk 0:01:30]}  Rd2+ {[%clk 0:00:28]} 26. Ke3 {[%clk 0:01:30]}  Rd3+ {[%clk 0:00:28]} 27. Kf2 {[%clk 0:01:28]}  Rd2+ {[%clk 0:00:27]} 28. Ke1 {[%clk 0:01:27]}  Rxh2 {[%clk 0:00:17]} 29. Ra3 {[%clk 0:01:26]}  Re2+ {[%clk 0:00:15]} 30. Kf1 {[%clk 0:01:26]}  Kf7 {[%clk 0:00:14]} 31. c6 {[%clk 0:01:25]}  Rxb2 {[%clk 0:00:14]} 32. Rxa5 {[%clk 0:01:24]}  Rb1+ {[%clk 0:00:10]} 33. Kf2 {[%clk 0:01:23]}  Rb2+ {[%clk 0:00:11]} 34. Ke1 {[%clk 0:01:23]}  Kf6 {[%clk 0:00:10]} 35. Rb5 {[%clk 0:01:22]}  Rc2 {[%clk 0:00:10]} 36. a5 {[%clk 0:01:22]}  Rc1+ {[%clk 0:00:09]} 37. Kd2 {[%clk 0:01:21]}  Rxc6 {[%clk 0:00:09]} 38. a6 {[%clk 0:01:22]}  Rd6+ {[%clk 0:00:09]} 39. Ke3 {[%clk 0:01:21]}  Rd8 {[%clk 0:00:08]} 40. a7 {[%clk 0:01:21]}  Ra8 {[%clk 0:00:06]} 41. Rb8 {[%clk 0:01:21]} 1-0


[Site "https://www.chess.com"]

[Event "Titled Tuesday Blitz July 26 Early 2022"]
[White "Hansen, Eric"]
[Black "Estrada Nieto, Julian"]
[WhiteFideId "2606771"]
[BlackFideId "5101018"]
[WhiteElo "2568"]
[BlackElo "2252"]
[Result "1-0"]
[Round "01"]
[TimeControl "180+1"]
[Date "2022.07.26"]
[WhiteClock "0:00:16"]
[BlackClock "0:00:09"]

1. e4 {[%clk 0:02:11]}  e5 {[%clk 0:02:59]} 2. Nf3 {[%clk 0:02:11]}  Nc6 {[%clk 0:02:59]} 3. Bb5 {[%clk 0:02:10]}  a6 {[%clk 0:02:59]} 4. Ba4 {[%clk 0:02:10]}  Nf6 {[%clk 0:03:00]} 5. d3 {[%clk 0:02:10]}  d6 {[%clk 0:02:57]} 6. O-O {[%clk 0:02:10]}  g6 {[%clk 0:02:57]} 7. c4 {[%clk 0:02:09]}  Bg7 {[%clk 0:02:57]} 8. h3 {[%clk 0:02:10]}  O-O {[%clk 0:02:57]} 9. Be3 {[%clk 0:02:09]}  Bd7 {[%clk 0:02:53]} 10. Nc3 {[%clk 0:02:09]}  Ne7 {[%clk 0:02:24]} 11. Bxd7 {[%clk 0:02:06]}  Nxd7 {[%clk 0:02:24]} 12. d4 {[%clk 0:02:06]}  exd4 {[%clk 0:02:23]} 13. Nxd4 {[%clk 0:02:04]}  Nc6 {[%clk 0:02:15]} 14. Rc1 {[%clk 0:02:03]}  Re8 {[%clk 0:02:13]} 15. Re1 {[%clk 0:02:03]}  Nc5 {[%clk 0:02:10]} 16. Nxc6 {[%clk 0:01:57]}  bxc6 {[%clk 0:02:10]} 17. Bd4 {[%clk 0:01:54]}  f6 {[%clk 0:02:03]} 18. b4 {[%clk 0:01:53]}  Ne6 {[%clk 0:02:03]} 19. Be3 {[%clk 0:01:52]}  Rb8 {[%clk 0:02:02]} 20. a3 {[%clk 0:01:51]}  Qe7 {[%clk 0:01:42]} 21. Qd2 {[%clk 0:01:48]}  Qf7 {[%clk 0:01:41]} 22. Bh6 {[%clk 0:01:46]}  Bh8 {[%clk 0:01:38]} 23. Qd3 {[%clk 0:01:39]}  g5 {[%clk 0:01:28]} 24. c5 {[%clk 0:01:30]}  dxc5 {[%clk 0:01:10]} 25. Qxa6 {[%clk 0:01:21]}  cxb4 {[%clk 0:01:05]} 26. axb4 {[%clk 0:01:21]}  Qg6 {[%clk 0:01:02]} 27. Qxc6 {[%clk 0:01:17]}  Qxh6 {[%clk 0:01:01]} 28. Nd5 {[%clk 0:01:16]}  Qg6 {[%clk 0:00:51]} 29. Re3 {[%clk 0:01:13]}  Nd4 {[%clk 0:00:31]} 30. Qc4 {[%clk 0:01:10]}  Ne6 {[%clk 0:00:31]} 31. Ra1 {[%clk 0:00:53]}  Qf7 {[%clk 0:00:30]} 32. Ra6 {[%clk 0:00:52]}  Nf4 {[%clk 0:00:28]} 33. Rxf6 {[%clk 0:00:43]}  Bxf6 {[%clk 0:00:27]} 34. Nxf6+ {[%clk 0:00:43]}  Kg7 {[%clk 0:00:27]} 35. Nxe8+ {[%clk 0:00:43]}  Rxe8 {[%clk 0:00:25]} 36. Qc5 {[%clk 0:00:43]}  Qe7 {[%clk 0:00:23]} 37. Qc3+ {[%clk 0:00:42]}  Qe5 {[%clk 0:00:23]} 38. Qc2 {[%clk 0:00:41]}  Rd8 {[%clk 0:00:22]} 39. g3 {[%clk 0:00:41]}  Ne6 {[%clk 0:00:21]} 40. Rc3 {[%clk 0:00:39]}  Rd4 {[%clk 0:00:18]} 41. Rc6 {[%clk 0:00:35]}  Qxe4 {[%clk 0:00:16]} 42. Qc3 {[%clk 0:00:34]}  Kf7 {[%clk 0:00:13]} 43. Qc1 {[%clk 0:00:22]}  Qe2 {[%clk 0:00:12]} 44. Kg2 {[%clk 0:00:19]}  Rd1 {[%clk 0:00:12]} 45. Rxc7+ {[%clk 0:00:19]}  Kf6 {[%clk 0:00:10]} 46. Qc3+ {[%clk 0:00:18]}  Nd4 {[%clk 0:00:10]} 47. Rc6+ {[%clk 0:00:18]}  Kf5 {[%clk 0:00:09]} 48. Qc5+ {[%clk 0:00:18]}  Ke4 {[%clk 0:00:09]} 49. Qe7+ {[%clk 0:00:17]}  Kd3 {[%clk 0:00:09]} 50. Qxe2+ {[%clk 0:00:17]}  Nxe2 {[%clk 0:00:09]} 51. Rd6+ {[%clk 0:00:16]}  Kc2 {[%clk 0:00:09]} 52. Rxd1 {[%clk 0:00:16]}  Kxd1 {[%clk 0:00:10]} 53. b5 {[%clk 0:00:17]}  Nd4 {[%clk 0:00:10]} 54. b6 {[%clk 0:00:16]}  Nc6 {[%clk 0:00:10]} 55. f4 {[%clk 0:00:15]}  gxf4 {[%clk 0:00:09]} 56. gxf4 {[%clk 0:00:16]}  Kd2 {[%clk 0:00:10]} 57. f5 {[%clk 0:00:16]}  Kd3 {[%clk 0:00:10]} 58. f6 {[%clk 0:00:17]}  Kd4 {[%clk 0:00:10]} 59. f7 {[%clk 0:00:17]}  Ne5 {[%clk 0:00:09]} 60. f8=Q {[%clk 0:00:16]} 1-0


[Site "https://www.chess.com"]

[Event "Titled Tuesday Blitz July 26 Early 2022"]
[White "Howell, David W L"]
[Black "Vovk, Orest"]
[WhiteFideId "410608"]
[BlackFideId "14113490"]
[WhiteElo "2559"]
[BlackElo "2203"]
[Result "1/2-1/2"]
[Round "01"]
[TimeControl "180+1"]
[Date "2022.07.26"]
[WhiteClock "0:00:10"]
[BlackClock "0:00:05"]

1. e4 {[%clk 0:03:00]}  g5 {[%clk 0:02:59]} 2. f4 {[%clk 0:02:46]}  gxf4 {[%clk 0:02:51]} 3. d4 {[%clk 0:02:45]}  d5 {[%clk 0:02:50]} 4. e5 {[%clk 0:02:39]}  c5 {[%clk 0:02:34]} 5. c3 {[%clk 0:02:38]}  Nc6 {[%clk 0:02:33]} 6. dxc5 {[%clk 0:02:24]}  Nxe5 {[%clk 0:02:26]} 7. Bxf4 {[%clk 0:02:21]}  Ng6 {[%clk 0:02:23]} 8. Be3 {[%clk 0:02:19]}  Bh6 {[%clk 0:02:12]} 9. Bf2 {[%clk 0:02:16]}  Nf6 {[%clk 0:02:08]} 10. Nf3 {[%clk 0:02:12]}  O-O {[%clk 0:02:04]} 11. Be2 {[%clk 0:02:08]}  Ne4 {[%clk 0:01:54]} 12. Bg1 {[%clk 0:02:04]}  Nf4 {[%clk 0:01:40]} 13. Bf1 {[%clk 0:02:01]}  e5 {[%clk 0:01:21]} 14. Nbd2 {[%clk 0:01:43]}  Nxd2 {[%clk 0:01:09]} 15. Qxd2 {[%clk 0:01:43]}  e4 {[%clk 0:01:06]} 16. Be3 {[%clk 0:01:34]}  exf3 {[%clk 0:00:52]} 17. Bxf4 {[%clk 0:01:27]}  Qh4+ {[%clk 0:00:47]} 18. g3 {[%clk 0:01:25]}  Re8+ {[%clk 0:00:35]} 19. Kf2 {[%clk 0:01:21]}  Bxf4 {[%clk 0:00:32]} 20. Qxf4 {[%clk 0:01:19]}  Qxf4 {[%clk 0:00:28]} 21. gxf4 {[%clk 0:01:20]}  Bf5 {[%clk 0:00:27]} 22. Rg1+ {[%clk 0:01:16]}  Kf8 {[%clk 0:00:27]} 23. Kxf3 {[%clk 0:01:15]}  Be4+ {[%clk 0:00:26]} 24. Kf2 {[%clk 0:01:15]}  Rec8 {[%clk 0:00:24]} 25. b4 {[%clk 0:01:12]}  a5 {[%clk 0:00:24]} 26. Bb5 {[%clk 0:01:07]}  axb4 {[%clk 0:00:22]} 27. cxb4 {[%clk 0:01:08]}  Ra3 {[%clk 0:00:22]} 28. Rg3 {[%clk 0:01:08]}  Rca8 {[%clk 0:00:21]} 29. Rxa3 {[%clk 0:01:00]}  Rxa3 {[%clk 0:00:22]} 30. Be2 {[%clk 0:01:01]}  d4 {[%clk 0:00:19]} 31. Rd1 {[%clk 0:00:58]}  d3 {[%clk 0:00:17]} 32. Bf3 {[%clk 0:00:58]}  Rxa2+ {[%clk 0:00:15]} 33. Ke3 {[%clk 0:00:58]}  Bxf3 {[%clk 0:00:14]} 34. Kxf3 {[%clk 0:00:59]}  Rb2 {[%clk 0:00:14]} 35. Rxd3 {[%clk 0:00:59]}  Rxb4 {[%clk 0:00:14]} 36. Rd7 {[%clk 0:00:58]}  Kg7 {[%clk 0:00:13]} 37. Kg4 {[%clk 0:00:57]}  Rb5 {[%clk 0:00:12]} 38. Rc7 {[%clk 0:00:55]}  b6 {[%clk 0:00:11]} 39. c6 {[%clk 0:00:54]}  Rc5 {[%clk 0:00:11]} 40. Kf3 {[%clk 0:00:49]}  b5 {[%clk 0:00:12]} 41. Ke4 {[%clk 0:00:49]}  b4 {[%clk 0:00:12]} 42. Kd4 {[%clk 0:00:49]}  Rc2 {[%clk 0:00:08]} 43. Kd5 {[%clk 0:00:48]}  b3 {[%clk 0:00:08]} 44. Rb7 {[%clk 0:00:48]}  b2 {[%clk 0:00:09]} 45. Kd6 {[%clk 0:00:46]}  Rxh2 {[%clk 0:00:08]} 46. c7 {[%clk 0:00:46]}  Rd2+ {[%clk 0:00:07]} 47. Ke7 {[%clk 0:00:45]}  Rc2 {[%clk 0:00:07]} 48. Kd7 {[%clk 0:00:45]}  Rd2+ {[%clk 0:00:06]} 49. Kc8 {[%clk 0:00:41]}  Kf6 {[%clk 0:00:04]} 50. Kb8 {[%clk 0:00:41]}  Rc2 {[%clk 0:00:04]} 51. c8=Q {[%clk 0:00:41]}  Rxc8+ {[%clk 0:00:04]} 52. Kxc8 {[%clk 0:00:41]}  Kf5 {[%clk 0:00:05]} 53. Rxb2 {[%clk 0:00:34]}  Kxf4 {[%clk 0:00:05]} 54. Kd7 {[%clk 0:00:33]}  h5 {[%clk 0:00:05]} 55. Kd6 {[%clk 0:00:33]}  h4 {[%clk 0:00:05]} 56. Rb4+ {[%clk 0:00:34]}  Kg3 {[%clk 0:00:05]} 57. Ke5 {[%clk 0:00:33]}  h3 {[%clk 0:00:05]} 58. Rb3+ {[%clk 0:00:33]}  Kg2 {[%clk 0:00:05]} 59. Kf4 {[%clk 0:00:33]}  h2 {[%clk 0:00:05]} 60. Rb2+ {[%clk 0:00:34]}  Kh3 {[%clk 0:00:04]} 61. Rb3+ {[%clk 0:00:19]}  Kg2 {[%clk 0:00:04]} 62. Rg3+ {[%clk 0:00:13]}  Kf2 {[%clk 0:00:03]} 63. Rf3+ {[%clk 0:00:12]}  Kg2 {[%clk 0:00:04]} 64. Rg3+ {[%clk 0:00:12]}  Kf2 {[%clk 0:00:04]} 65. Rh3 {[%clk 0:00:10]}  Kg2 {[%clk 0:00:04]} 66. Rxh2+ {[%clk 0:00:08]}  Kxh2 {[%clk 0:00:05]} 67. Kf5 {[%clk 0:00:09]}  Kg3 {[%clk 0:00:05]} 68. Kf6 {[%clk 0:00:10]}  Kf4 {[%clk 0:00:05]} 69. Kxf7 {[%clk 0:00:10]} 1/2-1/2


[Site "https://www.chess.com"]

[Event "Titled Tuesday Blitz July 26 Early 2022"]
[White "Ibarra Jerez, Jose Carlos"]
[Black "Girinath, P.D.S."]
[WhiteFideId "2226332"]
[BlackFideId "5000572"]
[WhiteElo "2628"]
[BlackElo "2369"]
[Result "1-0"]
[Round "01"]
[TimeControl "180+1"]
[Date "2022.07.26"]
[WhiteClock "0:00:25"]
[BlackClock "0:00:01"]

1. e4 {[%clk 0:02:56]}  e6 {[%clk 0:03:00]} 2. d4 {[%clk 0:02:56]}  d5 {[%clk 0:03:00]} 3. Nc3 {[%clk 0:02:56]}  Bb4 {[%clk 0:02:51]} 4. Ne2 {[%clk 0:02:55]}  dxe4 {[%clk 0:02:50]} 5. a3 {[%clk 0:02:55]}  Be7 {[%clk 0:02:50]} 6. Nxe4 {[%clk 0:02:55]}  Nd7 {[%clk 0:02:51]} 7. Be3 {[%clk 0:02:53]}  Ngf6 {[%clk 0:02:50]} 8. Nxf6+ {[%clk 0:02:36]}  Bxf6 {[%clk 0:02:51]} 9. Nf4 {[%clk 0:02:34]}  O-O {[%clk 0:02:30]} 10. Nh5 {[%clk 0:02:32]}  e5 {[%clk 0:02:22]} 11. Qd2 {[%clk 0:02:27]}  exd4 {[%clk 0:02:20]} 12. Nxf6+ {[%clk 0:02:27]}  Qxf6 {[%clk 0:02:14]} 13. Bxd4 {[%clk 0:02:23]}  Re8+ {[%clk 0:02:12]} 14. Be2 {[%clk 0:02:23]}  Qe7 {[%clk 0:01:32]} 15. Be3 {[%clk 0:02:15]}  Nf6 {[%clk 0:01:28]} 16. O-O-O {[%clk 0:02:03]}  Bg4 {[%clk 0:01:18]} 17. Bxg4 {[%clk 0:01:49]}  Nxg4 {[%clk 0:01:19]} 18. Bg5 {[%clk 0:01:43]}  Qc5 {[%clk 0:01:13]} 19. Bh4 {[%clk 0:01:36]}  h6 {[%clk 0:00:55]} 20. Rhe1 {[%clk 0:01:28]}  Qc6 {[%clk 0:00:33]} 21. f3 {[%clk 0:01:25]}  Nf6 {[%clk 0:00:27]} 22. Qb4 {[%clk 0:01:19]}  Nd5 {[%clk 0:00:23]} 23. Qd4 {[%clk 0:01:16]}  Nb6 {[%clk 0:00:16]} 24. b3 {[%clk 0:01:13]}  Re6 {[%clk 0:00:11]} 25. Rxe6 {[%clk 0:01:09]}  Qxe6 {[%clk 0:00:12]} 26. Re1 {[%clk 0:01:09]}  Qd5 {[%clk 0:00:11]} 27. Qc3 {[%clk 0:01:01]}  c6 {[%clk 0:00:08]} 28. Re7 {[%clk 0:01:00]}  Qh5 {[%clk 0:00:07]} 29. Qd4 {[%clk 0:00:51]}  Nd5 {[%clk 0:00:06]} 30. Rxb7 {[%clk 0:00:44]}  Re8 {[%clk 0:00:06]} 31. Bg3 {[%clk 0:00:37]}  Qg6 {[%clk 0:00:01]} 32. Qd2 {[%clk 0:00:25]} 1-0


[Site "https://www.chess.com"]

[Event "Titled Tuesday Blitz July 26 Early 2022"]
[White "Ismayil, Malak"]
[Black "Nazari, Arad"]
[WhiteFideId "13412604"]
[BlackFideId "12577324"]
[WhiteElo "1879"]
[BlackElo "2129"]
[Result "0-1"]
[Round "01"]
[TimeControl "180+1"]
[Date "2022.07.27"]
[WhiteClock "0:00:06"]
[BlackClock "0:00:40"]

1. e4 {[%clk 0:03:00]}  c5 {[%clk 0:02:59]} 2. Nf3 {[%clk 0:02:59]}  d6 {[%clk 0:02:59]} 3. Bb5+ {[%clk 0:02:58]}  Nd7 {[%clk 0:02:59]} 4. O-O {[%clk 0:02:58]}  a6 {[%clk 0:02:58]} 5. Bxd7+ {[%clk 0:02:57]}  Bxd7 {[%clk 0:02:59]} 6. d4 {[%clk 0:02:56]}  cxd4 {[%clk 0:02:58]} 7. Nxd4 {[%clk 0:02:55]}  e5 {[%clk 0:02:53]} 8. Nb3 {[%clk 0:02:48]}  Be7 {[%clk 0:02:49]} 9. Be3 {[%clk 0:02:40]}  Nf6 {[%clk 0:02:48]} 10. f3 {[%clk 0:02:41]}  O-O {[%clk 0:02:47]} 11. c4 {[%clk 0:02:40]}  Be6 {[%clk 0:02:39]} 12. N1d2 {[%clk 0:02:39]}  b5 {[%clk 0:02:37]} 13. cxb5 {[%clk 0:02:35]}  axb5 {[%clk 0:02:38]} 14. Qe2 {[%clk 0:02:35]}  Qd7 {[%clk 0:02:34]} 15. a3 {[%clk 0:02:24]}  d5 {[%clk 0:02:32]} 16. Nc5 {[%clk 0:02:24]}  Bxc5 {[%clk 0:02:31]} 17. Bxc5 {[%clk 0:02:24]}  Rfc8 {[%clk 0:02:31]} 18. b4 {[%clk 0:02:24]}  d4 {[%clk 0:02:17]} 19. f4 {[%clk 0:02:10]}  exf4 {[%clk 0:02:12]} 20. Rxf4 {[%clk 0:02:11]}  d3 {[%clk 0:01:58]} 21. Qe1 {[%clk 0:01:34]}  Ng4 {[%clk 0:01:53]} 22. h3 {[%clk 0:01:20]}  Rxc5 {[%clk 0:01:38]} 23. bxc5 {[%clk 0:01:18]}  Qd4+ {[%clk 0:01:38]} 24. Kh1 {[%clk 0:01:17]}  Ne3 {[%clk 0:01:25]} 25. Nf3 {[%clk 0:01:03]}  Qb2 {[%clk 0:01:25]} 26. Qg1 {[%clk 0:00:54]}  Nxg2 {[%clk 0:01:08]} 27. Rb1 {[%clk 0:00:47]}  Qxb1 {[%clk 0:01:08]} 28. Qxb1 {[%clk 0:00:47]}  Nxf4 {[%clk 0:01:09]} 29. Qxb5 {[%clk 0:00:37]}  h6 {[%clk 0:01:02]} 30. a4 {[%clk 0:00:29]}  Bxh3 {[%clk 0:01:01]} 31. c6 {[%clk 0:00:28]}  Bg2+ {[%clk 0:00:58]} 32. Kg1 {[%clk 0:00:28]}  Bxf3 {[%clk 0:00:58]} 33. Qb7 {[%clk 0:00:22]}  d2 {[%clk 0:00:39]} 34. Qxa8+ {[%clk 0:00:21]}  Kh7 {[%clk 0:00:40]} 35. c7 {[%clk 0:00:12]}  d1=Q+ {[%clk 0:00:40]} 36. Kf2 {[%clk 0:00:13]}  Qe2+ {[%clk 0:00:40]} 37. Kg3 {[%clk 0:00:13]}  Nh5+ {[%clk 0:00:40]} 38. Kh3 {[%clk 0:00:06]}  Qg2+ {[%clk 0:00:40]} 39. Kh4 {[%clk 0:00:06]}  Qg4# {[%clk 0:00:40]} 0-1


[Site "https://www.chess.com"]